[Event "Late-Titled-Tuesday-Blitz-March-19-2024"]
[Site "Chess.com"]
[Date "2024.03.19"]
[Round "2"]
[White "MaxLeto"]
[Black "ritanovikova"]
[Result "1-0"]
[WhiteElo "2501"]
[BlackElo "2217"]
[TimeControl "180+1"]
[EndTime "14:19:36 PDT"]
[Termination "MaxLeto won on time"]

1. b3 {[%clk 0:02:57.2]} 1... Nf6 {[%clk 0:02:54.8]} 2. a3 {[%clk 0:02:58.1]}
2... g6 {[%clk 0:02:55.6]} 3. c3 {[%clk 0:02:59]} 3... Bg7 {[%clk 0:02:55.8]} 4.
d3 {[%clk 0:02:59.9]} 4... O-O {[%clk 0:02:55.6]} 5. e3 {[%clk 0:03:00.8]} 5...
d5 {[%clk 0:02:55.2]} 6. f3 {[%clk 0:03:01.7]} 6... e5 {[%clk 0:02:54.2]} 7. g3
{[%clk 0:03:02.6]} 7... e4 {[%clk 0:02:49.5]} 8. h3 {[%clk 0:03:03.5]} 8... exf3
{[%clk 0:02:45]} 9. Nxf3 {[%clk 0:03:04.4]} 9... c5 {[%clk 0:02:42.8]} 10. Qe2
{[%clk 0:02:55.7]} 10... Nc6 {[%clk 0:02:36.2]} 11. Bg2 {[%clk 0:02:39.7]} 11...
Re8 {[%clk 0:02:31.4]} 12. O-O {[%clk 0:02:29]} 12... Qc7 {[%clk 0:02:23.5]} 13.
Qf2 {[%clk 0:02:26.8]} 13... Nh5 {[%clk 0:02:05.1]} 14. g4 {[%clk 0:02:23.1]}
14... Ng3 {[%clk 0:01:34.5]} 15. Re1 {[%clk 0:02:22.4]} 15... h5 {[%clk
0:01:34.2]} 16. gxh5 {[%clk 0:02:10.3]} 16... Nxh5 {[%clk 0:01:31.8]} 17. Bb2
{[%clk 0:01:56.7]} 17... Qe7 {[%clk 0:01:11.1]} 18. Nbd2 {[%clk 0:01:53.4]}
18... Be6 {[%clk 0:01:02]} 19. Nf1 {[%clk 0:01:40.3]} 19... Ne5 {[%clk
0:00:51.9]} 20. Nxe5 {[%clk 0:01:24.6]} 20... Bxe5 {[%clk 0:00:52.8]} 21. c4
{[%clk 0:01:17]} 21... Bxb2 {[%clk 0:00:49.1]} 22. Qxb2 {[%clk 0:01:17.9]} 22...
Qg5 {[%clk 0:00:40.6]} 23. Kh2 {[%clk 0:01:10.7]} 23... dxc4 {[%clk 0:00:37.1]}
24. bxc4 {[%clk 0:01:11.6]} 24... Rab8 {[%clk 0:00:29.4]} 25. Qf2 {[%clk
0:01:04.4]} 25... Qe7 {[%clk 0:00:28.2]} 26. Rad1 {[%clk 0:00:58.2]} 26... Qd6+
{[%clk 0:00:27.7]} 27. Kg1 {[%clk 0:00:53.8]} 27... Kg7 {[%clk 0:00:26.6]} 28.
Nh2 {[%clk 0:00:39.9]} 28... f5 {[%clk 0:00:23.8]} 29. Nf3 {[%clk 0:00:38.8]}
29... Qg3 {[%clk 0:00:19.1]} 30. Qb2+ {[%clk 0:00:37.7]} 30... Kg8 {[%clk
0:00:16.8]} 31. Qe5 {[%clk 0:00:35]} 31... Qxe5 {[%clk 0:00:14.3]} 32. Nxe5
{[%clk 0:00:35.9]} 32... Bf7 {[%clk 0:00:09.1]} 33. Nd7 {[%clk 0:00:28.8]} 33...
Rbd8 {[%clk 0:00:07.3]} 34. Nxc5 {[%clk 0:00:28.5]} 34... Kg7 {[%clk 0:00:08.2]}
35. Nxb7 {[%clk 0:00:26.6]} 35... Rb8 {[%clk 0:00:08.3]} 36. c5 {[%clk
0:00:26.1]} 36... f4 {[%clk 0:00:07.7]} 37. Kf2 {[%clk 0:00:20.6]} 37... fxe3+
{[%clk 0:00:07.3]} 38. Rxe3 {[%clk 0:00:21.5]} 38... Rec8 {[%clk 0:00:06.9]} 39.
Re7 {[%clk 0:00:17.8]} 39... Kf8 {[%clk 0:00:05.5]} 40. Rde1 {[%clk 0:00:15.9]}
40... Nf4 {[%clk 0:00:04.7]} 41. R1e3 {[%clk 0:00:09.1]} 41... Nxg2 {[%clk
0:00:04.2]} 42. Kxg2 {[%clk 0:00:10]} 42... Bd5+ {[%clk 0:00:03.9]} 43. Kg3
{[%clk 0:00:09.4]} 43... Rxb7 {[%clk 0:00:04.5]} 44. Rxb7 {[%clk 0:00:09.1]}
44... Bxb7 {[%clk 0:00:05.4]} 45. d4 {[%clk 0:00:10]} 45... Bd5 {[%clk
0:00:05.4]} 46. Kf4 {[%clk 0:00:09.2]} 46... Kf7 {[%clk 0:00:05.5]} 47. Re5
{[%clk 0:00:08.2]} 47... Rd8 {[%clk 0:00:05.1]} 48. h4 {[%clk 0:00:07.3]} 48...
Kf6 {[%clk 0:00:05.3]} 49. Ke3 {[%clk 0:00:07]} 49... a5 {[%clk 0:00:04.8]} 50.
Kd2 {[%clk 0:00:05.3]} 50... a4 {[%clk 0:00:05.2]} 51. Kc3 {[%clk 0:00:05.8]}
51... Bb3 {[%clk 0:00:04.4]} 52. Rg5 {[%clk 0:00:04]} 52... Re8 {[%clk
0:00:03.4]} 53. Kb4 {[%clk 0:00:03.4]} 53... Rb8+ {[%clk 0:00:03]} 54. Ka5
{[%clk 0:00:03.5]} 54... Rd8 {[%clk 0:00:03.1]} 55. c6 {[%clk 0:00:03.3]} 55...
Rxd4 {[%clk 0:00:03]} 56. Rc5 {[%clk 0:00:03.8]} 56... Rc4 {[%clk 0:00:02]} 57.
Rxc4 {[%clk 0:00:02.9]} 57... Bxc4 {[%clk 0:00:02.2]} 58. Kxa4 {[%clk
0:00:03.8]} 58... Be6 {[%clk 0:00:01.2]} 59. Ka5 {[%clk 0:00:04.2]} 59... Kf5
{[%clk 0:00:01.2]} 60. Kb6 {[%clk 0:00:04.7]} 60... Kg4 {[%clk 0:00:02.1]} 61.
a4 {[%clk 0:00:05.3]} 61... Kxh4 {[%clk 0:00:02.1]} 62. a5 {[%clk 0:00:06.2]}
62... g5 {[%clk 0:00:03]} 63. a6 {[%clk 0:00:06.8]} 63... g4 {[%clk 0:00:03.4]}
64. a7 {[%clk 0:00:07.4]} 64... g3 {[%clk 0:00:04.3]} 65. a8=Q {[%clk 0:00:08]}
65... g2 {[%clk 0:00:04.1]} 66. Qa1 {[%clk 0:00:07.8]} 66... Kg3 {[%clk
0:00:03.5]} 67. Qg1 {[%clk 0:00:08.7]} 1-0

[Event "Late-Titled-Tuesday-Blitz-March-19-2024"]
[Site "Chess.com"]
[Date "2024.03.19"]
[Round "2"]
[White "ExtremeLearner"]
[Black "MaiqMaster"]
[Result "1/2-1/2"]
[WhiteElo "2557"]
[BlackElo "2353"]
[TimeControl "180+1"]
[EndTime "14:19:37 PDT"]
[Termination "Game drawn by repetition"]

1. d4 {[%clk 0:03:00.9]} 1... d5 {[%clk 0:02:59.6]} 2. c4 {[%clk 0:03:01.8]}
2... e6 {[%clk 0:02:59.9]} 3. Nf3 {[%clk 0:03:02.2]} 3... Nf6 {[%clk 0:03:00.2]}
4. Nc3 {[%clk 0:03:01.2]} 4... dxc4 {[%clk 0:03:00.3]} 5. e4 {[%clk 0:03:01.1]}
5... b5 {[%clk 0:03:00.5]} 6. e5 {[%clk 0:03:01.2]} 6... Nd5 {[%clk 0:03:00.2]}
7. Nxb5 {[%clk 0:03:01.6]} 7... Nb6 {[%clk 0:03:00.4]} 8. Be2 {[%clk 0:03:00.9]}
8... Nc6 {[%clk 0:03:00.2]} 9. O-O {[%clk 0:03:00.2]} 9... Be7 {[%clk
0:02:59.6]} 10. Be3 {[%clk 0:02:59.2]} 10... O-O {[%clk 0:02:59.3]} 11. a3
{[%clk 0:02:55.4]} 11... Bb7 {[%clk 0:02:54.4]} 12. Qc2 {[%clk 0:02:54]} 12...
Na5 {[%clk 0:02:53.6]} 13. Nc3 {[%clk 0:02:51.5]} 13... Qd7 {[%clk 0:02:44.2]}
14. Rad1 {[%clk 0:02:49.1]} 14... Nd5 {[%clk 0:02:37.8]} 15. Bg5 {[%clk
0:02:29.3]} 15... h6 {[%clk 0:02:22.1]} 16. Bxe7 {[%clk 0:02:27.7]} 16... Qxe7
{[%clk 0:02:23]} 17. Ne4 {[%clk 0:02:25.1]} 17... Nf4 {[%clk 0:02:03.9]} 18.
Rfe1 {[%clk 0:02:12.7]} 18... Nxe2+ {[%clk 0:02:01.8]} 19. Qxe2 {[%clk
0:02:05.1]} 19... Rfd8 {[%clk 0:01:57.7]} 20. Nc5 {[%clk 0:02:02]} 20... Bd5
{[%clk 0:01:48.8]} 21. Nd2 {[%clk 0:01:30.1]} 21... Rab8 {[%clk 0:01:45.4]} 22.
Nb1 {[%clk 0:01:24.8]} 22... Nb3 {[%clk 0:01:39]} 23. Nc3 {[%clk 0:01:20.8]}
23... Nxc5 {[%clk 0:01:35.3]} 24. dxc5 {[%clk 0:01:14.4]} 24... Qxc5 {[%clk
0:01:36.2]} 25. Qg4 {[%clk 0:00:58.4]} 25... Ba8 {[%clk 0:01:00.3]} 26. Ne4
{[%clk 0:00:47.8]} 26... Bxe4 {[%clk 0:00:57.6]} 27. Qxe4 {[%clk 0:00:46.8]}
27... Rd5 {[%clk 0:00:46.6]} 28. Rxd5 {[%clk 0:00:32]} 28... Qxd5 {[%clk
0:00:39]} 29. Qc2 {[%clk 0:00:30.5]} 29... Qd3 {[%clk 0:00:35.5]} 30. Rc1 {[%clk
0:00:29.6]} 30... Rb5 {[%clk 0:00:23.1]} 31. Qxc4 {[%clk 0:00:23.1]} 31... Qd2
{[%clk 0:00:11.4]} 32. Qxc7 {[%clk 0:00:11.1]} 32... Rxb2 {[%clk 0:00:10.3]} 33.
Rf1 {[%clk 0:00:10.4]} 33... Ra2 {[%clk 0:00:08.8]} 34. Qxa7 {[%clk 0:00:09.6]}
34... Qb2 {[%clk 0:00:08.5]} 35. Qa8+ {[%clk 0:00:09.3]} 35... Kh7 {[%clk
0:00:08.1]} 36. Qe4+ {[%clk 0:00:10]} 36... g6 {[%clk 0:00:08.7]} 37. Qf4 {[%clk
0:00:09.8]} 37... Kg8 {[%clk 0:00:08.4]} 38. Qxh6 {[%clk 0:00:08.8]} 38... Qxe5
{[%clk 0:00:08.1]} 39. Qh3 {[%clk 0:00:09.2]} 39... Qb2 {[%clk 0:00:07.2]} 40.
Qd3 {[%clk 0:00:06.5]} 40... Rxa3 {[%clk 0:00:07.1]} 41. Qd8+ {[%clk 0:00:07.1]}
41... Kg7 {[%clk 0:00:07.2]} 42. Qd1 {[%clk 0:00:07.4]} 42... Qf6 {[%clk
0:00:07.2]} 43. Qg4 {[%clk 0:00:07.3]} 43... Ra2 {[%clk 0:00:07.6]} 44. h4
{[%clk 0:00:07.7]} 44... Rd2 {[%clk 0:00:04.7]} 45. h5 {[%clk 0:00:07.7]} 45...
Rd4 {[%clk 0:00:05.4]} 46. Qg3 {[%clk 0:00:08.3]} 46... Rd5 {[%clk 0:00:04.6]}
47. hxg6 {[%clk 0:00:08]} 47... Qxg6 {[%clk 0:00:05.5]} 48. Qxg6+ {[%clk
0:00:07.2]} 48... Kxg6 {[%clk 0:00:06.4]} 49. g3 {[%clk 0:00:07.7]} 49... Rd2
{[%clk 0:00:07.1]} 50. Kg2 {[%clk 0:00:08.6]} 50... Rd5 {[%clk 0:00:07.8]} 51.
Rb1 {[%clk 0:00:08.2]} 51... f5 {[%clk 0:00:08.4]} 52. Rb6 {[%clk 0:00:08.2]}
52... Kf6 {[%clk 0:00:09.3]} 53. Kh3 {[%clk 0:00:08.3]} 53... Rd4 {[%clk
0:00:09.7]} 54. f3 {[%clk 0:00:08.5]} 54... Rd3 {[%clk 0:00:10.3]} 55. f4 {[%clk
0:00:09.1]} 55... Rd1 {[%clk 0:00:10.8]} 56. Ra6 {[%clk 0:00:09.2]} 56... Rh1+
{[%clk 0:00:10.8]} 57. Kg2 {[%clk 0:00:09.8]} 57... Rc1 {[%clk 0:00:11.7]} 58.
Ra2 {[%clk 0:00:10]} 58... Rc3 {[%clk 0:00:12.4]} 59. Re2 {[%clk 0:00:10.4]}
59... Rc4 {[%clk 0:00:12.7]} 60. Re3 {[%clk 0:00:10.8]} 60... Rc5 {[%clk
0:00:13]} 61. Kf3 {[%clk 0:00:11.4]} 61... e5 {[%clk 0:00:13.3]} 62. fxe5+
{[%clk 0:00:11.6]} 62... Rxe5 {[%clk 0:00:14.2]} 63. Ra3 {[%clk 0:00:11.9]}
63... Re6 {[%clk 0:00:14.3]} 64. Ra5 {[%clk 0:00:11.2]} 64... Rc6 {[%clk
0:00:14.8]} 65. Kg2 {[%clk 0:00:11.3]} 65... Rc2+ {[%clk 0:00:15]} 66. Kh3
{[%clk 0:00:11.4]} 66... Rc4 {[%clk 0:00:15.7]} 67. Ra6+ {[%clk 0:00:11.1]}
67... Kg5 {[%clk 0:00:16.3]} 68. Ra3 {[%clk 0:00:11]} 68... Rb4 {[%clk 0:00:16]}
69. Rf3 {[%clk 0:00:11.2]} 69... Rg4 {[%clk 0:00:15.6]} 70. Ra3 {[%clk
0:00:10.5]} 70... Re4 {[%clk 0:00:15.8]} 71. Ra8 {[%clk 0:00:10.7]} 71... Re6
{[%clk 0:00:14.3]} 72. Rg8+ {[%clk 0:00:11]} 72... Rg6 {[%clk 0:00:14.7]} 73.
Rf8 {[%clk 0:00:11.1]} 73... Rf6 {[%clk 0:00:15]} 74. Rg8+ {[%clk 0:00:10.3]}
74... Rg6 {[%clk 0:00:15.5]} 75. Rf8 {[%clk 0:00:11]} 75... Rf6 {[%clk
0:00:16.2]} 76. Rg8+ {[%clk 0:00:11.5]} 76... Rg6 {[%clk 0:00:16.8]} 1/2-1/2

[Event "Late-Titled-Tuesday-Blitz-March-19-2024"]
[Site "Chess.com"]
[Date "2024.03.19"]
[Round "2"]
[White "ACollins05"]
[Black "Chempiblinka"]
[Result "1/2-1/2"]
[WhiteElo "2551"]
[BlackElo "2336"]
[TimeControl "180+1"]
[EndTime "14:20:00 PDT"]
[Termination "Game drawn by stalemate"]

1. d4 {[%clk 0:03:00.9]} 1... Nf6 {[%clk 0:02:59.4]} 2. c4 {[%clk 0:03:00.9]}
2... g6 {[%clk 0:03:00]} 3. Nc3 {[%clk 0:03:01]} 3... Bg7 {[%clk 0:03:00.5]} 4.
e4 {[%clk 0:03:00.7]} 4... d6 {[%clk 0:03:01]} 5. h3 {[%clk 0:03:00.6]} 5... O-O
{[%clk 0:03:01.6]} 6. Bg5 {[%clk 0:03:00.5]} 6... c5 {[%clk 0:03:01.2]} 7. d5
{[%clk 0:03:00.6]} 7... b5 {[%clk 0:02:57.5]} 8. cxb5 {[%clk 0:02:58.3]} 8...
Qa5 {[%clk 0:02:58]} 9. Bd2 {[%clk 0:02:53.8]} 9... a6 {[%clk 0:02:47.8]} 10. a4
{[%clk 0:02:49.7]} 10... Qb4 {[%clk 0:02:45.7]} 11. Bd3 {[%clk 0:02:42.9]} 11...
Nfd7 {[%clk 0:02:38.2]} 12. Nge2 {[%clk 0:02:30.6]} 12... Ne5 {[%clk 0:02:26.4]}
13. Bc2 {[%clk 0:02:24.4]} 13... Nc4 {[%clk 0:02:10.2]} 14. Rb1 {[%clk
0:02:12.1]} 14... Nxd2 {[%clk 0:02:06.5]} 15. Qxd2 {[%clk 0:02:13]} 15... axb5
{[%clk 0:02:02.1]} 16. Nxb5 {[%clk 0:02:11.9]} 16... Na6 {[%clk 0:01:53]} 17.
Nec3 {[%clk 0:01:57.8]} 17... Bd7 {[%clk 0:01:39.9]} 18. O-O {[%clk 0:01:55.4]}
18... Bxb5 {[%clk 0:01:33.1]} 19. axb5 {[%clk 0:01:56.3]} 19... Nc7 {[%clk
0:01:32.2]} 20. Qg5 {[%clk 0:01:46.2]} 20... Bf6 {[%clk 0:01:25.8]} 21. Qe3
{[%clk 0:01:44.5]} 21... Nxb5 {[%clk 0:01:24.3]} 22. Nxb5 {[%clk 0:01:45.4]}
22... Qxb5 {[%clk 0:01:24.3]} 23. Bd3 {[%clk 0:01:44.1]} 23... Qb3 {[%clk
0:01:23.6]} 24. Qe2 {[%clk 0:01:43.1]} 24... Ra2 {[%clk 0:01:21.4]} 25. Bc4
{[%clk 0:01:31.3]} 25... Rxb2 {[%clk 0:01:21.7]} 26. Rxb2 {[%clk 0:01:26.3]}
26... Qxb2 {[%clk 0:01:22.6]} 27. Qxb2 {[%clk 0:01:26.2]} 27... Bxb2 {[%clk
0:01:23.5]} 28. Rb1 {[%clk 0:01:26]} 28... Rb8 {[%clk 0:01:20.1]} 29. Kf1 {[%clk
0:01:24.6]} 29... Rb4 {[%clk 0:01:20.5]} 30. Be2 {[%clk 0:01:18.3]} 30... Kg7
{[%clk 0:01:20.1]} 31. f3 {[%clk 0:01:18.3]} 31... Kf6 {[%clk 0:01:20.4]} 32.
Bd3 {[%clk 0:01:15.3]} 32... Ke5 {[%clk 0:01:20.1]} 33. Ke2 {[%clk 0:01:15.9]}
33... Kd4 {[%clk 0:01:13.1]} 34. Ba6 {[%clk 0:01:14.4]} 34... c4 {[%clk
0:01:10.7]} 35. Kd2 {[%clk 0:01:12.2]} 35... Bc3+ {[%clk 0:01:10.2]} 36. Kc2
{[%clk 0:01:12.6]} 36... Ra4 {[%clk 0:01:07.9]} 37. Rd1+ {[%clk 0:01:07.7]}
37... Kc5 {[%clk 0:01:07.1]} 38. Kxc3 {[%clk 0:00:58.5]} 38... Rxa6 {[%clk
0:01:06.3]} 39. Rb1 {[%clk 0:00:59.1]} 39... Ra3+ {[%clk 0:01:06.2]} 40. Kc2
{[%clk 0:00:58.8]} 40... Ra2+ {[%clk 0:01:05.4]} 41. Kc3 {[%clk 0:00:59.1]}
41... Ra3+ {[%clk 0:00:54.4]} 42. Kc2 {[%clk 0:00:58.6]} 42... Kd4 {[%clk
0:00:50]} 43. Rd1+ {[%clk 0:00:57.4]} 43... Ke3 {[%clk 0:00:46.7]} 44. Rb1
{[%clk 0:00:58]} 44... Kd4 {[%clk 0:00:34.6]} 45. Rd1+ {[%clk 0:00:57.9]} 45...
Rd3 {[%clk 0:00:35]} 46. Ra1 {[%clk 0:00:55.1]} 46... h5 {[%clk 0:00:33.3]} 47.
Ra7 {[%clk 0:00:53.4]} 47... Re3 {[%clk 0:00:31.3]} 48. Rxe7 {[%clk 0:00:52.3]}
48... Re2+ {[%clk 0:00:31.8]} 49. Kd1 {[%clk 0:00:51.8]} 49... Rxg2 {[%clk
0:00:31.9]} 50. e5 {[%clk 0:00:40.9]} 50... Kxd5 {[%clk 0:00:30]} 51. exd6
{[%clk 0:00:40.9]} 51... Kxd6 {[%clk 0:00:30.9]} 52. Rxf7 {[%clk 0:00:40.9]}
52... Kd5 {[%clk 0:00:31.2]} 53. f4 {[%clk 0:00:39.2]} 53... Kd4 {[%clk
0:00:31.3]} 54. f5 {[%clk 0:00:39.4]} 54... g5 {[%clk 0:00:24]} 55. f6 {[%clk
0:00:36.9]} 55... g4 {[%clk 0:00:22.4]} 56. hxg4 {[%clk 0:00:36.5]} 56... hxg4
{[%clk 0:00:22.4]} 57. Rg7 {[%clk 0:00:34.1]} 57... Kd3 {[%clk 0:00:17.7]} 58.
Rd7+ {[%clk 0:00:33.3]} 58... Kc3 {[%clk 0:00:17.6]} 59. Rg7 {[%clk 0:00:24.9]}
59... Rf2 {[%clk 0:00:16]} 60. Rxg4 {[%clk 0:00:22.8]} 60... Rxf6 {[%clk
0:00:16.3]} 61. Rg3+ {[%clk 0:00:22.6]} 61... Kb4 {[%clk 0:00:15.3]} 62. Kc2
{[%clk 0:00:22.3]} 62... Rf2+ {[%clk 0:00:14.9]} 63. Kc1 {[%clk 0:00:22.3]}
63... Rh2 {[%clk 0:00:14.6]} 64. Rf3 {[%clk 0:00:21.8]} 64... Rg2 {[%clk
0:00:14.6]} 65. Rh3 {[%clk 0:00:21.6]} 65... Rf2 {[%clk 0:00:14.7]} 66. Rg3
{[%clk 0:00:21.5]} 66... Re2 {[%clk 0:00:14.6]} 67. Rh3 {[%clk 0:00:21.6]} 67...
Re7 {[%clk 0:00:14.4]} 68. Kc2 {[%clk 0:00:20.8]} 68... Rg7 {[%clk 0:00:14.4]}
69. Rf3 {[%clk 0:00:20.5]} 69... Rg2+ {[%clk 0:00:14.8]} 70. Kc1 {[%clk
0:00:20.3]} 70... Rg4 {[%clk 0:00:13.4]} 71. Rh3 {[%clk 0:00:20.5]} 71... Rd4
{[%clk 0:00:13.8]} 72. Kc2 {[%clk 0:00:19.6]} 72... Rd6 {[%clk 0:00:13.6]} 73.
Rg3 {[%clk 0:00:19.7]} 73... Ra6 {[%clk 0:00:13.9]} 74. Rh3 {[%clk 0:00:19.6]}
74... Ra2+ {[%clk 0:00:14.2]} 75. Kb1 {[%clk 0:00:20.1]} 75... Rd2 {[%clk
0:00:14]} 76. Kc1 {[%clk 0:00:20.5]} 76... Rg2 {[%clk 0:00:13.5]} 77. Rf3 {[%clk
0:00:20.1]} 77... Rh2 {[%clk 0:00:12.8]} 78. Rg3 {[%clk 0:00:20.3]} 78... Ra2
{[%clk 0:00:13]} 79. Rh3 {[%clk 0:00:20.1]} 79... Ra1+ {[%clk 0:00:11]} 80. Kb2
{[%clk 0:00:19.5]} 80... Rd1 {[%clk 0:00:10.6]} 81. Kc2 {[%clk 0:00:19.2]} 81...
Re1 {[%clk 0:00:10.8]} 82. Rg3 {[%clk 0:00:19.1]} 82... Rf1 {[%clk 0:00:11]} 83.
Rh3 {[%clk 0:00:18.8]} 83... Rf2+ {[%clk 0:00:10.9]} 84. Kc1 {[%clk 0:00:18.7]}
84... Rf4 {[%clk 0:00:10.4]} 85. Kc2 {[%clk 0:00:17.6]} 85... Rf5 {[%clk
0:00:10.9]} 86. Rg3 {[%clk 0:00:17.8]} 86... Ra5 {[%clk 0:00:11.3]} 87. Rh3
{[%clk 0:00:17.5]} 87... Ra2+ {[%clk 0:00:11.3]} 88. Kb1 {[%clk 0:00:18.1]}
88... Rd2 {[%clk 0:00:11]} 89. Kc1 {[%clk 0:00:18.6]} 89... Rd3 {[%clk
0:00:11.1]} 90. Rxd3 {[%clk 0:00:17.7]} 90... cxd3 {[%clk 0:00:11.9]} 91. Kd2
{[%clk 0:00:18.1]} 91... Kc4 {[%clk 0:00:12.5]} 92. Kd1 {[%clk 0:00:18.7]} 92...
Kd4 {[%clk 0:00:12.5]} 93. Kd2 {[%clk 0:00:19.1]} 93... Ke4 {[%clk 0:00:12.6]}
94. Kd1 {[%clk 0:00:19.7]} 94... Ke3 {[%clk 0:00:12.7]} 95. Ke1 {[%clk
0:00:20.1]} 95... d2+ {[%clk 0:00:12.7]} 96. Kd1 {[%clk 0:00:20.6]} 96... Kd3
{[%clk 0:00:12.8]} 1/2-1/2

[Event "Late-Titled-Tuesday-Blitz-March-19-2024"]
[Site "Chess.com"]
[Date "2024.03.19"]
[Round "2"]
[White "Szparu"]
[Black "biostatistician"]
[Result "1-0"]
[WhiteElo "2801"]
[BlackElo "2579"]
[TimeControl "180+1"]
[EndTime "14:20:27 PDT"]
[Termination "Szparu won on time"]

1. e4 {[%clk 0:03:00.9]} 1... e5 {[%clk 0:02:58.7]} 2. Nf3 {[%clk 0:03:00.8]}
2... Nc6 {[%clk 0:02:58.3]} 3. Bb5 {[%clk 0:03:01.4]} 3... Nf6 {[%clk
0:02:58.1]} 4. d3 {[%clk 0:03:01.3]} 4... d6 {[%clk 0:02:57.9]} 5. c3 {[%clk
0:03:00.7]} 5... Bd7 {[%clk 0:02:57.5]} 6. O-O {[%clk 0:03:00.7]} 6... g6 {[%clk
0:02:56.7]} 7. Re1 {[%clk 0:03:00.9]} 7... Bg7 {[%clk 0:02:56.3]} 8. Nbd2 {[%clk
0:03:01.1]} 8... O-O {[%clk 0:02:56.6]} 9. Nf1 {[%clk 0:03:01.2]} 9... Nh5
{[%clk 0:02:54.7]} 10. Ba4 {[%clk 0:02:55.3]} 10... Qe8 {[%clk 0:02:50.9]} 11.
Ne3 {[%clk 0:02:46.3]} 11... Nf4 {[%clk 0:02:26.4]} 12. Bb3 {[%clk 0:02:38.5]}
12... Kh8 {[%clk 0:02:23.7]} 13. Nd5 {[%clk 0:02:38.6]} 13... Nxd5 {[%clk
0:02:22.7]} 14. exd5 {[%clk 0:02:36.5]} 14... Ne7 {[%clk 0:02:16]} 15. d4 {[%clk
0:02:36.5]} 15... f6 {[%clk 0:02:10.9]} 16. Bc2 {[%clk 0:02:30.5]} 16... Nxd5
{[%clk 0:01:57.2]} 17. dxe5 {[%clk 0:02:30]} 17... Qf7 {[%clk 0:01:43.1]} 18.
exd6 {[%clk 0:02:26]} 18... cxd6 {[%clk 0:01:39]} 19. Bb3 {[%clk 0:02:25.7]}
19... Bc6 {[%clk 0:01:37.3]} 20. Bf4 {[%clk 0:02:20.6]} 20... Rfe8 {[%clk
0:01:35]} 21. Qd2 {[%clk 0:02:17]} 21... g5 {[%clk 0:01:11.6]} 22. Bg3 {[%clk
0:02:15.6]} 22... g4 {[%clk 0:01:11.5]} 23. Nd4 {[%clk 0:02:09]} 23... Qd7
{[%clk 0:01:08.5]} 24. Nxc6 {[%clk 0:02:05.8]} 24... bxc6 {[%clk 0:01:08.1]} 25.
Bxd5 {[%clk 0:02:05.8]} 25... cxd5 {[%clk 0:01:07.8]} 26. Qxd5 {[%clk
0:02:06.2]} 26... Rxe1+ {[%clk 0:01:03.7]} 27. Rxe1 {[%clk 0:02:05.7]} 27... Re8
{[%clk 0:01:04.6]} 28. Rd1 {[%clk 0:02:01.6]} 28... Bf8 {[%clk 0:00:53.9]} 29.
Qd4 {[%clk 0:01:57.2]} 29... Qe6 {[%clk 0:00:51.5]} 30. Rf1 {[%clk 0:01:43.9]}
30... a6 {[%clk 0:00:45.8]} 31. a4 {[%clk 0:01:41.7]} 31... d5 {[%clk
0:00:45.5]} 32. b4 {[%clk 0:01:41.3]} 32... Bg7 {[%clk 0:00:41.1]} 33. b5 {[%clk
0:01:39]} 33... axb5 {[%clk 0:00:39.8]} 34. axb5 {[%clk 0:01:39.4]} 34... f5
{[%clk 0:00:40.3]} 35. Qd2 {[%clk 0:01:37.6]} 35... Rc8 {[%clk 0:00:38.7]} 36.
Re1 {[%clk 0:01:02.3]} 36... Bxc3 {[%clk 0:00:31.8]} 37. Rxe6 {[%clk 0:01:02.3]}
37... Bxd2 {[%clk 0:00:31.2]} 38. Be5+ {[%clk 0:01:03]} 38... Kg8 {[%clk
0:00:31.1]} 39. h4 {[%clk 0:00:58.6]} 39... Rc1+ {[%clk 0:00:28.1]} 40. Kh2
{[%clk 0:00:58.5]} 40... Re1 {[%clk 0:00:28.4]} 41. g3 {[%clk 0:00:50.2]} 41...
Bc3 {[%clk 0:00:25]} 42. b6 {[%clk 0:00:46.6]} 42... Bxe5 {[%clk 0:00:25]} 43.
b7 {[%clk 0:00:46]} 43... Rb1 {[%clk 0:00:17.9]} 44. Rxe5 {[%clk 0:00:46.3]}
44... Rxb7 {[%clk 0:00:18.1]} 45. Rxf5 {[%clk 0:00:46.5]} 45... Rf7 {[%clk
0:00:11.2]} 46. Rg5+ {[%clk 0:00:41.4]} 46... Kf8 {[%clk 0:00:11.2]} 47. Kg2
{[%clk 0:00:41.9]} 47... d4 {[%clk 0:00:03.7]} 48. Rxg4 {[%clk 0:00:42]} 48...
Rd7 {[%clk 0:00:04.3]} 49. Kf1 {[%clk 0:00:42]} 49... Kf7 {[%clk 0:00:04.1]} 50.
Ke2 {[%clk 0:00:42.1]} 50... Kf6 {[%clk 0:00:05]} 51. Kd3 {[%clk 0:00:42.3]}
51... Kf5 {[%clk 0:00:05.6]} 52. Rxd4 {[%clk 0:00:42.2]} 52... Ra7 {[%clk
0:00:04.7]} 53. Rf4+ {[%clk 0:00:42.4]} 53... Ke5 {[%clk 0:00:04.3]} 54. Ke2
{[%clk 0:00:43.2]} 54... h5 {[%clk 0:00:03.1]} 55. Kf3 {[%clk 0:00:42.5]} 55...
Ra3+ {[%clk 0:00:03]} 56. Kg2 {[%clk 0:00:43.2]} 56... Ra5 {[%clk 0:00:03.5]}
57. Rb4 {[%clk 0:00:43.7]} 57... Kf5 {[%clk 0:00:03.3]} 58. Rb3 {[%clk
0:00:43.1]} 58... Rc5 {[%clk 0:00:02.9]} 59. Re3 {[%clk 0:00:44]} 59... Rd5
{[%clk 0:00:03.1]} 60. Kf3 {[%clk 0:00:44.6]} 60... Rc5 {[%clk 0:00:03.5]} 61.
Rd3 {[%clk 0:00:45]} 61... Rb5 {[%clk 0:00:03.6]} 62. Rc3 {[%clk 0:00:45.2]}
62... Ra5 {[%clk 0:00:04]} 63. Ke3 {[%clk 0:00:45.5]} 63... Re5+ {[%clk
0:00:04.3]} 64. Kd4 {[%clk 0:00:46]} 64... Ra5 {[%clk 0:00:05.2]} 65. f3 {[%clk
0:00:33.5]} 65... Ra4+ {[%clk 0:00:04.3]} 66. Rc4 {[%clk 0:00:26.9]} 66... Ra3
{[%clk 0:00:04.7]} 67. Rc5+ {[%clk 0:00:27.1]} 67... Kg6 {[%clk 0:00:04.2]} 68.
Rg5+ {[%clk 0:00:25.9]} 68... Kh6 {[%clk 0:00:04.2]} 69. Rf5 {[%clk 0:00:23.9]}
69... Ra4+ {[%clk 0:00:03.7]} 70. Ke3 {[%clk 0:00:22.9]} 70... Ra3+ {[%clk
0:00:04.1]} 71. Kf2 {[%clk 0:00:23.2]} 71... Ra4 {[%clk 0:00:05]} 72. Kg2 {[%clk
0:00:21]} 72... Ra3 {[%clk 0:00:04.2]} 73. Kh3 {[%clk 0:00:20.5]} 73... Rb3
{[%clk 0:00:03.5]} 74. Rf4 {[%clk 0:00:13.3]} 74... Kg6 {[%clk 0:00:03.7]} 75.
g4 {[%clk 0:00:08.8]} 75... hxg4+ {[%clk 0:00:04.6]} 76. Kxg4 {[%clk 0:00:09.5]}
76... Rb6 {[%clk 0:00:03.9]} 77. h5+ {[%clk 0:00:09.7]} 77... Kh6 {[%clk
0:00:04]} 78. Rf5 {[%clk 0:00:10.4]} 78... Rb4+ {[%clk 0:00:04.1]} 79. f4 {[%clk
0:00:10.6]} 79... Rb6 {[%clk 0:00:05]} 80. Rd5 {[%clk 0:00:10.4]} 80... Ra6
{[%clk 0:00:05.1]} 81. Rd8 {[%clk 0:00:07.9]} 81... Rb6 {[%clk 0:00:05]} 82.
Rh8+ {[%clk 0:00:08.1]} 82... Kg7 {[%clk 0:00:05]} 83. Re8 {[%clk 0:00:08.6]}
83... Kh6 {[%clk 0:00:05.4]} 84. Re5 {[%clk 0:00:09.2]} 84... Ra6 {[%clk
0:00:05.4]} 85. Re4 {[%clk 0:00:06.3]} 85... Rb6 {[%clk 0:00:04.6]} 86. f5
{[%clk 0:00:06.8]} 86... Rb1 {[%clk 0:00:03.9]} 87. Re6+ {[%clk 0:00:07.3]}
87... Kg7 {[%clk 0:00:04.6]} 88. h6+ {[%clk 0:00:07.7]} 88... Kh7 {[%clk
0:00:04.8]} 89. Kg5 {[%clk 0:00:08.2]} 89... Rg1+ {[%clk 0:00:03.3]} 90. Kf6
{[%clk 0:00:08.7]} 90... Kxh6 {[%clk 0:00:04.2]} 91. Ke7+ {[%clk 0:00:08.8]}
91... Kg5 {[%clk 0:00:04]} 92. f6 {[%clk 0:00:09.3]} 92... Re1 {[%clk
0:00:01.9]} 93. Rxe1 {[%clk 0:00:08.7]} 1-0